[Event "9th Bangabandhu Rapid Women 2021"]
[Site "Dhaka"]
[Date "2021.04.02"]
[Round "1.4"]
[White "Kazi Zarin, Tasnim"]
[Black "Sultana, Zakia"]
[Result "0-1"]
[ECO "C01"]
[WhiteElo "1790"]
[BlackElo "1814"]
[Annotator "NA RC"]
[PlyCount "146"]
[EventDate "2021.04.02"]
[EventType "swiss"]
[EventCountry "BAN"]
[SourceTitle "playchess.com"]
[Source "ChessBase"]
[SourceQuality "1"]
[TimeControl "1500+10"]

1. e4 {[%emt 0:25:10]} e6 {[%emt 0:25:10]} 2. d4 d5 {[%emt 0:00:10]} 3. exd5 {[%emt 0:00:20]} exd5 {[%emt 0:00:10]} 4. Nf3 {[%emt 0:00:10]} Nf6 {[%emt 0:00:10]} 5. Bd3 {[%emt 0:00:10]} Be7 {[%emt 0:00:10]} 6. O-O {[%emt 0:00:10]} Bg4 {[%emt 0:00:10]} 7. Re1 {[%emt 0:00:10]} O-O {[%emt 0:00:10]} 8. h3 {[%emt 0:00:10]} Bh5 {[%emt 0:00:10]} 9. Bf4 {[%emt 0:00:10]} Nbd7 {[%emt 0:00:10]} 10. c3 {[%emt 0:00:10]} c6 {[%emt 0:00:10]} 11. Nbd2 {[%emt 0:00:10]} Re8 {[%emt 0:00:10]} 12. Qb3 {[%emt 0:00:10]} Bxf3 {[%emt 0:00:10]} 13. Nxf3 {[%emt 0:00:10]} Qb6 {[%emt 0:00:10]} 14. Qc2 {[%emt 0:00:10]} h6 {[%emt 0:00:10]} 15. Qd2 {[%emt 0:00:10]} Bf8 {[%emt 0:00:10]} 16. Ne5 {[%emt 0:00:10]} Nxe5 {[%emt 0:00:10]} 17. Bxe5 {[%emt 0:00:10]} Nd7 {[%emt 0:00:10]} 18. Bg3 {[%emt 0:00:10]} Nf6 {[%emt 0:00:10]} 19. Bc2 {[%emt 0:00:10]} Ne4 {[%emt 0:00:10]} 20. Qd3 {[%emt 0:00:10]} (20. Bxe4 $5 Rxe4 21. Rxe4 dxe4 22. Re1 $14) 20... g6 {[%emt 0:00:10]} ({Reject} 20... Qxb2 $6 {[#]} 21. f3 $1 $16) 21. Be5 {[%emt 0:00:10] [#]} ({White should play} 21. b3 $15) 21... Rxe5 $1 {[%emt 0:00:10]} 22. dxe5 {[%emt 0:00:10]} Qxf2+ {[%emt 0:00:10]} 23. Kh1 {[%emt 0:00:10] [#]} Qxe1+ $3 {[%emt 0:00:10]} 24. Rxe1 {[%emt 0:00:10]} Nf2+ {[%emt 0:00:10] Double Attack} 25. Kh2 {[%emt 0:00:10]} Nxd3 {[%emt 0:00:10]} 26. Bxd3 {[%emt 0:00:10]} Re8 {[%emt 0:00:10]} 27. e6 {[%emt 0:00:10]} Kg7 {[%emt 0:00:10]} 28. c4 {[%emt 0:00:10]} Rxe6 {[%emt 0:00:10]} 29. Rd1 {[%emt 0:00:10]} dxc4 {[%emt 0:00:10]} 30. Bxc4 {[%emt 0:00:10]} Rd6 {[%emt 0:00:10]} 31. Rf1 {[%emt 0:00:10]} Rf6 {[%emt 0:00:10]} 32. Rd1 {[%emt 0:00:10]} Bd6+ {[%emt 0:00:10]} 33. Kg1 {[%emt 0:00:10]} Bc5+ {[%emt 0:00:10]} 34. Kh1 {[%emt 0:00:10]} Rd6 {[%emt 0:00:10]} 35. Rf1 {[%emt 0:00:10]} f5 {[%emt 0:00:10]} 36. Re1 {[%emt 0:00:10]} Kf6 {[%emt 0:00:10]} 37. a3 {[%emt 0:00:10]} b5 {[%emt 0:00:10]} 38. Bf1 {[%emt 0:00:10]} Bd4 {[%emt 0:00:10]} 39. Rd1 {[%emt 0:00:10]} Be5 {[%emt 0:00:10]} 40. Rb1 {[%emt 0:00:10]} Rd2 {[%emt 0:00:10]} 41. b3 {[%emt 0:00:10]} Rb2 {[%emt 0:00:10]} 42. Rc1 {[%emt 0:00:10]} Rxb3 {[%emt 0:00:10]} 43. Rxc6+ {[%emt 0:00:10]} Kg5 {[%emt 0:00:10]} 44. Kg1 {[%emt 0:00:10]} Bd4+ {[%emt 0:00:10]} 45. Kh2 {[%emt 0:00:10]} Rb1 {[%emt 0:00:10]} 46. Bd3 {[%emt 0:00:10]} Be5+ {[%emt 0:00:10]} 47. g3 {[%emt 0:00:10]} Rb2+ {[%emt 0:00:10]} 48. Bc2 {[%emt 0:00:10]} h5 {[%emt 0:00:10]} 49. h4+ {[%emt 0:00:10]} Kh6 {[%emt 0:00:10]} 50. Kh3 {[%emt 0:00:10]} Kg7 {[%emt 0:00:10]} 51. Rc5 {[%emt 0:00:10]} Bd6 {[%emt 0:00:10]} 52. Rc6 {[%emt 0:00:10]} Bxa3 {[%emt 0:00:10]} 53. Bd3 {[%emt 0:00:10]} a5 {[%emt 0:00:10]} 54. Ra6 {[%emt 0:00:10]} a4 {[%emt 0:00:10]} 55. Rb6 {[%emt 0:00:10]} Bc5 {[%emt 0:00:10]} 56. Rb7+ {[%emt 0:00:10]} Kf6 {[%emt 0:00:10]} 57. Rc7 {[%emt 0:00:10]} Bd6 {[%emt 0:00:10]} 58. Rc6 {[%emt 0:00:10]} Ke5 {[%emt 0:00:10]} 59. Rc8 {[%emt 0:00:10]} a3 {[%emt 0:00:10]} 60. Re8+ {[%emt 0:00:10]} Kd4 {[%emt 0:00:10]} 61. Bf1 {[%emt 0:00:10]} a2 {[%emt 0:00:10]} 62. Ra8 {[%emt 0:00:10]} Rb1 {[%emt 0:00:10]} 63. Rxa2 {[%emt 0:00:10]} Rxf1 {[%emt 0:00:10]} 64. Rd2+ {[%emt 0:00:10]} Kc5 {[%emt 0:00:10]} 65. Kg2 {[%emt 0:00:10]} Rc1 {[%emt 0:00:10]} 66. Re2 {[%emt 0:00:10]} Rc3 {[%emt 0:00:10]} 67. Re6 {[%emt 0:00:10]} Rxg3+ {[%emt 0:00:10]} 68. Kf2 {[%emt 0:00:10]} Rg4 {[%emt 0:00:10]} 69. Kf3 {[%emt 0:00:10]} b4 {[%emt 0:00:10]} 70. Ke3 {[%emt 0:00:10]} b3 {[%emt 0:00:10]} 71. Kd3 {[%emt 0:00:10]} Kd5 {[%emt 0:00:10]} 72. Re2 {[%emt 0:00:10]} Be5 {[%emt 0:00:10]} 73. Re1 {[%emt 0:00:10]} Rxh4 {[%emt 0:00:10]} 0-1

[Event "9th Bangabandhu Rapid Women 2021"]
[Site "Dhaka"]
[Date "2021.04.02"]
[Round "2.1"]
[White "Noshin, Anjum"]
[Black "Sultana, Sharmin Shirin"]
[Result "1-0"]
[ECO "B43"]
[WhiteElo "1874"]
[BlackElo "2002"]
[Annotator "ChessBase"]
[PlyCount "199"]
[EventDate "2021.04.02"]
[EventType "swiss"]
[EventCountry "BAN"]
[SourceTitle "playchess.com"]
[Source "ChessBase"]
[SourceQuality "1"]
[TimeControl "1500+10"]

1. e4 {[%emt 0:00:00]} c5 {[%emt 0:00:00]} 2. Nf3 {[%emt 0:00:00]} e6 {[%emt 0:00:00]} 3. d4 {[%emt 0:00:00]} cxd4 {[%emt 0:00:00]} 4. Nxd4 {[%emt 0:00:01]} a6 {[%emt 0:00:00]} 5. Nc3 {[%emt 0:00:06]} Qc7 {[%emt 0:00:00]} 6. Bd3 {[%emt 0:00:14]} Nc6 {[%emt 0:00:09]} 7. Nxc6 {[%emt 0:01:23]} dxc6 {[%emt 0:00:29]} 8. f4 {[%emt 0:04:45]} e5 {[%emt 0:01:13]} 9. O-O {[%emt 0:06:28]} Bc5+ {[%emt 0:00:07]} 10. Kh1 {[%emt 0:00:04]} Nf6 {[%emt 0:00:05]} 11. fxe5 {[%emt 0:01:04]} Ng4 {[%emt 0:00:12]} 12. Qf3 {[%emt 0:00:18]} Be6 {[%emt 0:00:12]} 13. Bf4 {[%emt 0:00:15]} Bd4 {[%emt 0:02:17]} 14. Ne2 {[%emt 0:01:27]} Bxe5 {[%emt 0:01:16]} 15. Bxe5 {[%emt 0:01:20]} Qxe5 {[%emt 0:01:15]} 16. Qg3 {[%emt 0:00:15]} Qxg3 {[%emt 0:00:41]} 17. Nxg3 {[%emt 0:00:02]} g6 {[%emt 0:00:58]} 18. h3 {[%emt 0:00:16]} Ne5 {[%emt 0:19:06]} 19. Ne2 {[%emt 0:00:19]} O-O-O {[%emt 0:00:00]} 20. Nf4 {[%emt 0:00:11]} Bd7 {[%emt 0:00:00]} 21. Be2 {[%emt 0:01:16]} h5 {[%emt 0:00:00]} 22. Rad1 {[%emt 0:02:26]} g5 {[%emt 0:00:00]} 23. Nd3 {[%emt 0:00:28]} Nxd3 {[%emt 0:00:00]} 24. Rxd3 {[%emt 0:00:18]} Be6 {[%emt 0:00:00]} 25. Rxd8+ {[%emt 0:00:57]} Kxd8 {[%emt 0:00:00]} 26. Kg1 {[%emt 0:00:18]} Ke7 {[%emt 0:00:00]} 27. b3 {[%emt 0:01:13]} Kd6 {[%emt 0:00:00]} 28. Kf2 {[%emt 0:00:41]} Ke5 {[%emt 0:00:00]} 29. Ke3 {[%emt 0:00:02]} h4 {[%emt 0:00:00]} 30. Bf3 {[%emt 0:01:38]} f6 {[%emt 0:00:00]} 31. Rd1 {[%emt 0:00:11]} Rg8 {[%emt 0:00:00]} 32. Rh1 {[%emt 0:00:39]} Rg7 {[%emt 0:00:00]} 33. Rd1 {[%emt 0:01:02]} Rh7 {[%emt 0:00:00]} 34. Rg1 {[%emt 0:00:27]} Bf7 {[%emt 0:00:00]} 35. Rd1 {[%emt 0:00:22]} Bg6 {[%emt 0:00:00]} 36. Rd4 {[%emt 0:00:04]} Re7 {[%emt 0:00:00]} 37. c3 {[%emt 0:00:17]} Bf7 {[%emt 0:00:00]} 38. Bg4 {[%emt 0:00:09]} Bg6 {[%emt 0:00:00]} 39. Bf3 {[%emt 0:00:09]} b5 {[%emt 0:00:00]} 40. Bg4 {[%emt 0:00:11]} a5 {[%emt 0:00:30]} 41. a4 {[%emt 0:00:13]} bxa4 {[%emt 0:00:08]} 42. Rxa4 {[%emt 0:00:08]} Kd6 {[%emt 0:00:13]} 43. Rxa5 {[%emt 0:00:17]} Bxe4 {[%emt 0:00:21]} 44. Kf2 {[%emt 0:00:05]} Bc2 {[%emt 0:01:05]} 45. b4 {[%emt 0:00:09]} Bd3 {[%emt 0:00:06]} 46. Bf5 {[%emt 0:00:07]} Bb5 {[%emt 0:00:24]} 47. Bg4 {[%emt 0:00:06]} Re5 {[%emt 0:00:18]} 48. Ra8 {[%emt 0:00:07]} f5 {[%emt 0:00:06]} 49. Bf3 {[%emt 0:00:07]} Re7 {[%emt 0:00:19]} 50. Rg8 {[%emt 0:00:06]} Ra7 {[%emt 0:00:32]} 51. Rxg5 {[%emt 0:00:08]} Ra2+ {[%emt 0:00:10]} 52. Kg1 {[%emt 0:00:29]} Ke5 {[%emt 0:00:20]} 53. Rg6 {[%emt 0:00:17]} Ra1+ {[%emt 0:00:15]} 54. Kh2 {[%emt 0:00:02]} Ra6 {[%emt 0:00:12]} 55. Rh6 {[%emt 0:00:09]} f4 {[%emt 0:00:43]} 56. Rxh4 {[%emt 0:00:05]} Ra3 {[%emt 0:00:00]} 57. Rh5+ {[%emt 0:00:05]} Kd6 {[%emt 0:00:10]} 58. Rf5 {[%emt 0:00:13]} Rxc3 {[%emt 0:00:02]} 59. Rxf4 {[%emt 0:00:01]} Ke5 {[%emt 0:00:11]} 60. Rh4 {[%emt 0:00:06]} Rc2 {[%emt 0:00:08]} 61. Kg3 {[%emt 0:00:06]} Rb2 {[%emt 0:00:21]} 62. Re4+ {[%emt 0:00:04]} Kf6 {[%emt 0:00:07]} 63. h4 {[%emt 0:00:32]} Rc2 {[%emt 0:00:25]} 64. h5 {[%emt 0:00:13]} Bd3 {[%emt 0:00:04]} 65. Rd4 {[%emt 0:00:04]} Bb5 {[%emt 0:00:14]} 66. Kf4 {[%emt 0:00:24]} Rf2 {[%emt 0:00:17]} 67. Rd6+ {[%emt 0:00:11]} Ke7 {[%emt 0:00:02]} 68. Rg6 {[%emt 0:00:04]} Kf7 {[%emt 0:00:06]} 69. Ke3 {[%emt 0:00:11]} Rb2 {[%emt 0:00:05]} 70. Bxc6 {[%emt 0:00:14]} Rxb4 {[%emt 0:00:23]} 71. Bxb5 {[%emt 0:00:07]} Rxb5 {[%emt 0:00:01]} 72. g4 {[%emt 0:00:05]} Rb4 {[%emt 0:00:15]} 73. Rg5 {[%emt 0:00:06]} Kf6 {[%emt 0:00:04]} 74. Rg6+ {[%emt 0:00:02]} Kf7 {[%emt 0:00:01]} 75. Kf3 {[%emt 0:00:01]} Ra4 {[%emt 0:00:03]} 76. Kg3 {[%emt 0:00:02]} Rb4 {[%emt 0:00:03]} 77. Kh4 {[%emt 0:00:03]} Rb5 {[%emt 0:00:02]} 78. Ra6 {[%emt 0:00:06]} Kg7 {[%emt 0:00:04]} 79. h6+ {[%emt 0:00:08]} Kh7 {[%emt 0:00:02]} 80. g5 {[%emt 0:00:01]} Rb1 {[%emt 0:00:06]} 81. Kh5 {[%emt 0:01:10]} Rh1+ {[%emt 0:00:04]} 82. Kg4 {[%emt 0:00:01]} Rg1+ {[%emt 0:00:08]} 83. Kf4 {[%emt 0:00:03]} Rf1+ {[%emt 0:00:03]} 84. Ke5 {[%emt 0:00:09]} Rf2 {[%emt 0:00:40]} 85. Rf6 {[%emt 0:00:25]} Re2+ {[%emt 0:00:33]} 86. Kf5 {[%emt 0:00:06]} Rf2+ {[%emt 0:00:06]} 87. Ke6 {[%emt 0:00:16]} Rg2 {[%emt 0:00:01]} 88. Rf5 {[%emt 0:00:09]} Kg6 {[%emt 0:00:11]} 89. Re5 {[%emt 0:00:08]} Ra2 {[%emt 0:00:09]} 90. Rd5 {[%emt 0:00:18]} Re2+ {[%emt 0:00:05]} 91. Kd7 {[%emt 0:00:04]} Re1 {[%emt 0:00:17]} 92. Kd6 {[%emt 0:00:10]} Re2 {[%emt 0:00:02]} 93. Re5 {[%emt 0:00:06]} Rd2+ {[%emt 0:00:03]} 94. Ke7 {[%emt 0:00:02]} Ra2 {[%emt 0:00:07]} 95. Rd5 {[%emt 0:00:10]} Ra7+ {[%emt 0:00:19]} 96. Rd7 {[%emt 0:00:15]} Ra5 {[%emt 0:00:02]} 97. h7 {[%emt 0:00:06]} Kxh7 {[%emt 0:00:15]} 98. Kf6+ {[%emt 0:00:04]} Kg8 {[%emt 0:00:05]} 99. Rd8+ {[%emt 0:00:19]} Kh7 {[%emt 0:00:01]} 100. g6+ {[%emt 0:00:02]} 1-0

[Event "9th Bangabandhu Rapid Women 2021"]
[Site "Dhaka"]
[Date "2021.04.02"]
[Round "2.2"]
[White "Sabikun Nahar, Tonima"]
[Black "Hamid, Rani"]
[Result "0-1"]
[ECO "B84"]
[WhiteElo "1533"]
[BlackElo "1923"]
[Annotator "ChessBase"]
[PlyCount "65"]
[EventDate "2021.04.02"]
[EventType "swiss"]
[EventCountry "BAN"]
[SourceTitle "playchess.com"]
[Source "ChessBase"]
[SourceQuality "1"]
[TimeControl "1500+10"]

1. e4 {[%emt 0:00:00]} c5 {[%emt 0:00:00]} 2. Nf3 {[%emt 0:00:10]} e6 {[%emt 0:00:10]} 3. d4 {[%emt 0:00:10]} cxd4 {[%emt 0:00:10]} 4. Nxd4 {[%emt 0:00:10]} a6 {[%emt 0:00:10]} 5. Nc3 {[%emt 0:00:08]} Qc7 {[%emt 0:00:03]} 6. Be2 {[%emt 0:00:23]} Nf6 {[%emt 0:00:04]} 7. O-O {[%emt 0:00:04]} Be7 {[%emt 0:00:26]} 8. Be3 {[%emt 0:00:44]} O-O {[%emt 0:00:20]} 9. a3 {[%emt 0:00:18]} d6 {[%emt 0:00:42]} 10. Qd2 {[%emt 0:00:37]} b5 {[%emt 0:00:22]} 11. f4 {[%emt 0:00:28]} Bb7 {[%emt 0:00:04]} 12. Bf3 {[%emt 0:00:42]} Nbd7 {[%emt 0:00:15]} 13. Nb3 {[%emt 0:00:08]} Rac8 {[%emt 0:00:28]} 14. Rfc1 {[%emt 0:01:36]} Nb6 {[%emt 0:01:15]} 15. Na5 {[%emt 0:02:07]} Ba8 {[%emt 0:00:18]} 16. e5 {[%emt 0:03:36]} Nfd5 {[%emt 0:01:04]} 17. exd6 {[%emt 0:00:53]} Bxd6 {[%emt 0:00:12]} 18. Bxd5 {[%emt 0:03:25]} Nxd5 {[%emt 0:01:29]} 19. Nxd5 {[%emt 0:00:36]} Bxd5 {[%emt 0:00:08]} 20. c4 {[%emt 0:02:23]} bxc4 {[%emt 0:00:16]} 21. Nxc4 {[%emt 0:01:16]} Bxc4 {[%emt 0:01:03]} 22. b3 {[%emt 0:00:04]} Qe7 {[%emt 0:01:00]} 23. bxc4 {[%emt 0:00:10]} Bxa3 {[%emt 0:00:42]} 24. Rc2 {[%emt 0:00:21]} Bb4 {[%emt 0:01:01]} 25. Qf2 {[%emt 0:00:27]} a5 {[%emt 0:00:15]} 26. Kh1 {[%emt 0:00:53]} Qf6 {[%emt 0:01:13]} 27. Bd4 {[%emt 0:00:32]} Qf5 {[%emt 0:00:12]} 28. g4 {[%emt 0:03:07]} Qe4+ {[%emt 0:00:41]} 29. Kg1 {[%emt 0:00:04]} Rfd8 {[%emt 0:00:24]} 30. Be3 {[%emt 0:01:21]} Rd3 {[%emt 0:01:04]} 31. Bb6 {[%emt 0:02:33]} Rf3 {[%emt 0:01:43]} 32. Qe2 {[%emt 0:00:12]} Qxf4 {[%emt 0:00:16]} 33. Qd1 {[%emt 0:00:52]} 0-1

[Event "9th Bangabandhu Rapid Women 2021"]
[Site "Dhaka"]
[Date "2021.04.02"]
[Round "2.4"]
[White "Jannatul, Ferdous"]
[Black "Talukder, Umme Taslima Protiva"]
[Result "1-0"]
[ECO "B42"]
[WhiteElo "1781"]
[BlackElo "1698"]
[Annotator "NA"]
[PlyCount "128"]
[EventDate "2021.04.02"]
[EventType "swiss"]
[EventCountry "BAN"]
[SourceTitle "playchess.com"]
[Source "ChessBase"]
[SourceQuality "1"]
[TimeControl "1500+10"]

1. e4 {[%emt 0:25:10]} c5 {[%emt 0:25:10]} 2. Nf3 {[%emt 0:00:10]} d6 {[%emt 0:00:10]} 3. d4 {[%emt 0:00:10]} cxd4 {[%emt 0:00:10]} 4. Nxd4 {[%emt 0:00:10]} a6 {[%emt 0:00:10]} 5. Nc3 {[%emt 0:00:10]} Nf6 {[%emt 0:00:10]} 6. Be3 {[%emt 0:00:10]} e6 {[%emt 0:00:10]} 7. Bd3 {[%emt 0:00:10]} Be7 {[%emt 0:00:10]} 8. O-O {[%emt 0:00:10]} O-O {[%emt 0:00:10]} 9. Kh1 {[%emt 0:00:10]} Nc6 {[%emt 0:00:10]} 10. f4 {[%emt 0:00:10]} e5 {[%emt 0:00:10]} 11. Nb3 {[%emt 0:00:10]} Nb4 {[%emt 0:00:10]} 12. a3 {[%emt 0:00:10]} Nxd3 {[%emt 0:00:10]} 13. cxd3 {[%emt 0:00:10]} Bg4 {[%emt 0:00:10]} 14. Qd2 {[%emt 0:00:10]} Be6 {[%emt 0:00:10]} 15. Qd1 {[%emt 0:00:10]} Rc8 {[%emt 0:00:10]} 16. f5 {[%emt 0:00:10]} Bd7 {[%emt 0:00:10]} 17. Qf3 {[%emt 0:00:10]} Bc6 {[%emt 0:00:10]} 18. Qg3 {[%emt 0:00:10]} Nh5 {[%emt 0:00:10]} 19. Qf3 {[%emt 0:00:10]} Nf6 {[%emt 0:00:10]} 20. Qg3 {[%emt 0:00:10]} Nh5 {[%emt 0:00:10]} 21. Qf3 {[%emt 0:00:10]} Nf6 {[%emt 0:00:10]} 22. Qg3 {[%emt 0:00:10]} Re8 {[%emt 0:00:10]} 23. Rad1 {[%emt 0:00:10]} Bf8 {[%emt 0:00:10]} 24. Nd2 {[%emt 0:00:10]} d5 {[%emt 0:00:10]} 25. exd5 {[%emt 0:00:10]} Bxd5 {[%emt 0:00:10]} 26. Nde4 {[%emt 0:00:10]} Bb3 {[%emt 0:00:10]} 27. Rd2 {[%emt 0:00:10]} Kh8 {[%emt 0:00:10]} 28. h3 {[%emt 0:00:10]} Qc7 {[%emt 0:00:10]} 29. Nxf6 {[%emt 0:00:10]} gxf6 {[%emt 0:00:10]} 30. Ne4 {[%emt 0:00:10]} Be7 {[%emt 0:00:10]} 31. Qh4 {[%emt 0:00:10]} Qc6 {[%emt 0:00:10]} 32. Rdf2 {[%emt 0:00:10]} Rg8 {[%emt 0:00:10]} 33. Rc1 {[%emt 0:00:10]} Qd7 {[%emt 0:00:10]} 34. Rxc8 {[%emt 0:00:10]} Qxc8 {[%emt 0:00:10]} 35. Nxf6 {[%emt 0:00:10]} Bxf6 {[%emt 0:00:10]} 36. Qxf6+ {[%emt 0:00:10]} Rg7 {[%emt 0:00:10]} 37. Bh6 {[%emt 0:00:10]} Qg8 {[%emt 0:00:10]} 38. Bxg7+ {[%emt 0:00:10]} Qxg7 {[%emt 0:00:10]} 39. Qxg7+ {[%emt 0:00:10]} Kxg7 {[%emt 0:00:10]} 40. f6+ {[%emt 0:00:10]} Kg6 {[%emt 0:00:10]} 41. g4 {[%emt 0:00:10]} h5 {[%emt 0:00:10]} 42. Kh2 {[%emt 0:00:10]} h4 {[%emt 0:00:10]} 43. Rf5 {[%emt 0:00:10]} Bc2 {[%emt 0:00:10]} 44. Rxe5 {[%emt 0:00:10]} Kxf6 {[%emt 0:00:10]} 45. Rh5 {[%emt 0:00:10]} Bxd3 {[%emt 0:00:10]} 46. Rxh4 {[%emt 0:00:10]} Bg6 {[%emt 0:00:10]} 47. Rh8 {[%emt 0:00:10]} Ke5 {[%emt 0:00:10]} 48. Kg3 {[%emt 0:00:10]} Kd4 {[%emt 0:00:10]} 49. Rc8 {[%emt 0:00:10]} Be4 {[%emt 0:00:10]} 50. Rc1 {[%emt 0:00:10]} Kd3 {[%emt 0:00:10]} 51. h4 {[%emt 0:00:10]} b5 {[%emt 0:00:10]} 52. g5 {[%emt 0:00:10]} a5 {[%emt 0:00:10]} 53. h5 {[%emt 0:00:10]} b4 {[%emt 0:00:10]} 54. axb4 axb4 {[%emt 0:00:10]} 55. Kf4 {[%emt 0:00:20]} Bh7 {[%emt 0:00:10]} 56. Rg1 {[%emt 0:00:10]} Kc2 {[%emt 0:00:10]} 57. Rg2+ Kd3 {[%emt 0:00:10]} 58. Ke5 {[%emt 0:00:20]} Be4 {[%emt 0:00:10]} 59. Rh2 {[%emt 0:00:10]} Bh7 {[%emt 0:00:10]} 60. Kf6 {[%emt 0:00:10]} b3 {[%emt 0:00:10]} 61. Kg7 {[%emt 0:00:10]} Be4 {[%emt 0:00:10]} 62. h6 {[%emt 0:00:10]} Kc4 {[%emt 0:00:10]} 63. h7 {[%emt 0:00:10]} Bc2 {[%emt 0:00:10]} 64. h8=Q Kd5 {[%emt 0:00:10]} 1-0

[Event "9th Bangabandhu Rapid Women 2021"]
[Site "Dhaka"]
[Date "2021.04.02"]
[Round "3.1"]
[White "Nusrat Jahan, Alo"]
[Black "Noshin, Anjum"]
[Result "0-1"]
[ECO "C54"]
[WhiteElo "1806"]
[BlackElo "1874"]
[Annotator "NA"]
[PlyCount "74"]
[EventDate "2021.04.02"]
[EventType "swiss"]
[EventCountry "BAN"]
[SourceTitle "playchess.com"]
[Source "ChessBase"]
[SourceQuality "1"]
[TimeControl "1500+10"]

1. e4 {[%emt 0:00:00]} e5 {[%emt 0:00:00]} 2. Nf3 {[%emt 0:00:00]} Nc6 {[%emt 0:00:00]} 3. Bc4 {[%emt 0:00:00]} Bc5 {[%emt 0:00:00]} 4. c3 {[%emt 0:00:00]} Nf6 {[%emt 0:00:00]} 5. d4 {[%emt 0:00:02]} exd4 {[%emt 0:00:00]} 6. e5 {[%emt 0:00:01]} d5 {[%emt 0:00:01]} 7. Bb5 {[%emt 0:00:02]} Ne4 {[%emt 0:00:01]} 8. cxd4 {[%emt 0:00:06]} Bb6 {[%emt 0:00:03]} 9. Bxc6+ {[%emt 0:00:41]} bxc6 {[%emt 0:00:02]} 10. O-O {[%emt 0:00:26]} O-O {[%emt 0:00:16]} 11. h3 {[%emt 0:00:38]} f6 {[%emt 0:00:08]} 12. Nc3 {[%emt 0:01:19]} Ba6 {[%emt 0:01:14]} 13. Re1 {[%emt 0:00:51]} fxe5 {[%emt 0:00:14]} 14. Nxe4 {[%emt 0:01:14]} dxe4 {[%emt 0:00:01]} 15. Rxe4 {[%emt 0:00:31]} exd4 {[%emt 0:00:02]} 16. Bg5 {[%emt 0:02:36]} Qd5 {[%emt 0:01:58]} 17. Re5 {[%emt 0:00:37]} Qc4 {[%emt 0:01:51]} 18. b3 {[%emt 0:03:00]} Qf7 {[%emt 0:02:37]} 19. Be7 {[%emt 0:04:56]} Rfe8 {[%emt 0:00:44]} 20. Ng5 {[%emt 0:00:09]} Qf4 {[%emt 0:04:54]} 21. Qh5 {[%emt 0:01:16]} Bd3 {[%emt 0:00:11]} 22. Rae1 {[%emt 0:04:14]} Bg6 {[%emt 0:00:14]} 23. Qd1 {[%emt 0:00:46]} Rxe7 {[%emt 0:00:43]} 24. Rxe7 {[%emt 0:00:36]} Qxg5 {[%emt 0:00:03]} 25. R1e5 {[%emt 0:00:52]} Qh4 {[%emt 0:02:46]} 26. Qe2 {[%emt 0:01:09]} h6 {[%emt 0:01:57]} 27. Qc4+ {[%emt 0:00:19]} Kh7 {[%emt 0:00:22]} 28. Qxc6 {[%emt 0:03:19]} Rf8 {[%emt 0:00:12]} 29. g3 {[%emt 0:00:00]} Qf6 {[%emt 0:01:06]} 30. Qg2 {[%emt 0:00:00]} d3 {[%emt 0:00:14]} 31. R7e6 {[%emt 0:00:00]} Qxf2+ {[%emt 0:00:12]} 32. Qxf2 {[%emt 0:00:04]} Bxf2+ {[%emt 0:00:04]} 33. Kg2 {[%emt 0:00:01]} d2 {[%emt 0:00:41]} 34. Rd5 {[%emt 0:00:08]} Bf7 {[%emt 0:00:28]} 35. Rxd2 {[%emt 0:00:02]} Bxe6 {[%emt 0:00:01]} 36. Rxf2 {[%emt 0:00:02]} Rxf2+ {[%emt 0:00:03]} 37. Kxf2 {[%emt 0:00:02]} Bxh3 {[%emt 0:00:07]} 0-1

[Event "9th Bangabandhu Rapid Women 2021"]
[Site "Dhaka"]
[Date "2021.04.02"]
[Round "3.2"]
[White "Ahmed, Walijah"]
[Black "Jannatul, Ferdous"]
[Result "1-0"]
[ECO "B33"]
[WhiteElo "1840"]
[BlackElo "1781"]
[Annotator "NA"]
[PlyCount "83"]
[EventDate "2021.04.02"]
[EventType "swiss"]
[EventCountry "BAN"]
[SourceTitle "playchess.com"]
[Source "ChessBase"]
[SourceQuality "1"]
[TimeControl "1500+10"]

1. e4 {[%emt 0:00:00]} c5 {[%emt 0:00:00]} 2. Nf3 {[%emt 0:00:00]} Nc6 {[%emt 0:00:00]} 3. d4 {[%emt 0:00:00]} cxd4 {[%emt 0:00:00]} 4. Nxd4 {[%emt 0:00:00]} Nf6 {[%emt 0:00:01]} 5. Nc3 {[%emt 0:00:03]} e5 {[%emt 0:00:32]} 6. Ndb5 {[%emt 0:00:04]} d6 {[%emt 0:00:02]} 7. Bg5 {[%emt 0:00:14]} a6 {[%emt 0:00:05]} 8. Na3 {[%emt 0:00:02]} b5 {[%emt 0:00:02]} 9. Nd5 {[%emt 0:00:19]} Be7 {[%emt 0:00:03]} 10. Bxf6 {[%emt 0:00:04]} Bxf6 {[%emt 0:00:02]} 11. c3 {[%emt 0:00:06]} Bg5 {[%emt 0:00:07]} 12. Nc2 {[%emt 0:00:19]} Ne7 {[%emt 0:00:06]} 13. h4 {[%emt 0:00:59]} Bh6 {[%emt 0:01:00]} 14. Nce3 {[%emt 0:00:37]} Bxe3 {[%emt 0:00:17]} 15. Nxe3 {[%emt 0:00:22]} Bb7 {[%emt 0:01:24]} 16. Bd3 {[%emt 0:01:41]} d5 {[%emt 0:04:18]} 17. exd5 {[%emt 0:03:47]} Nxd5 {[%emt 0:00:03]} 18. Nxd5 {[%emt 0:00:25]} Qxd5 {[%emt 0:02:40]} 19. f3 {[%emt 0:00:45]} Qc5 {[%emt 0:00:49]} 20. Qe2 {[%emt 0:00:25]} O-O {[%emt 0:00:27]} 21. Qf2 {[%emt 0:00:14]} Qc7 {[%emt 0:00:55]} 22. O-O {[%emt 0:01:33]} Rae8 {[%emt 0:01:27]} 23. Qc2 {[%emt 0:02:16]} h6 {[%emt 0:00:15]} 24. a4 {[%emt 0:00:30]} Qe7 {[%emt 0:05:24]} 25. axb5 {[%emt 0:00:55]} axb5 {[%emt 0:00:24]} 26. Qf2 {[%emt 0:01:03]} Bc6 {[%emt 0:02:15]} 27. Ra7 {[%emt 0:01:17]} Qf6 {[%emt 0:01:07]} 28. Ra6 {[%emt 0:01:22]} Re6 {[%emt 0:01:54]} 29. Rb6 {[%emt 0:01:27]} Bd7 {[%emt 0:01:09]} 30. Rb7 {[%emt 0:00:39]} Bc6 {[%emt 0:00:27]} 31. Rb6 {[%emt 0:00:17]} Bd7 {[%emt 0:00:06]} 32. Rxe6 {[%emt 0:00:02]} Qxe6 {[%emt 0:00:18]} 33. Qe2 {[%emt 0:00:14]} Qf6 {[%emt 0:01:06]} 34. h5 {[%emt 0:01:26]} Qd6 {[%emt 0:01:36]} 35. Rd1 {[%emt 0:00:21]} Qe6 {[%emt 0:00:12]} 36. Be4 {[%emt 0:00:24]} Kh8 {[%emt 0:00:12]} 37. Qd2 {[%emt 0:00:32]} Bc8 {[%emt 0:00:09]} 38. Qd6 {[%emt 0:00:12]} Qxd6 {[%emt 0:00:14]} 39. Rxd6 {[%emt 0:00:01]} f5 {[%emt 0:00:10]} 40. Bc6 {[%emt 0:00:20]} b4 {[%emt 0:00:11]} 41. cxb4 {[%emt 0:00:10]} Rf7 {[%emt 0:00:09]} 42. Rd8+ {[%emt 0:00:15]} 1-0